[Event "*** Titled Tuesday Blitz"]
[Site "Chess.com"]
[Date "2019.04.02"]
[Round "4"]
[White "bugsbunny444"]
[Black "Orest_Vovk"]
[Result "0-1"]
[WhiteElo "2481"]
[BlackElo "2341"]
[TimeControl "180+2"]
[EndTime "14:51:26 PDT"]
[Termination "Orest_Vovk won by resignation"]

1. Nf3 {[%clk 0:03:01.9]} 1... h6 {[%clk 0:03:00.5]} 2. e4 {[%clk 0:03:02.3]}
2... g5 {[%clk 0:03:01.3]} 3. d4 {[%clk 0:03:03.2]} 3... Bg7 {[%clk 0:02:58.4]}
4. h3 {[%clk 0:03:03.8]} 4... c5 {[%clk 0:02:59.3]} 5. dxc5 {[%clk 0:03:04.5]}
5... Qa5+ {[%clk 0:02:59.7]} 6. c3 {[%clk 0:03:05.3]} 6... Qxc5 {[%clk
0:03:00.7]} 7. Na3 {[%clk 0:03:06.3]} 7... d6 {[%clk 0:02:56.9]} 8. Be3 {[%clk
0:03:02.4]} 8... Bxc3+ {[%clk 0:02:48.9]} 9. Ke2 {[%clk 0:02:02]} 9... Qb4
{[%clk 0:02:47.7]} 10. bxc3 {[%clk 0:01:41.4]} 10... Qxa3 {[%clk 0:02:47.6]} 11.
Qb3 {[%clk 0:01:11.4]} 11... Qxb3 {[%clk 0:02:05.2]} 12. axb3 {[%clk 0:01:13.3]}
12... Be6 {[%clk 0:02:04]} 13. Nd4 {[%clk 0:01:10.1]} 13... Nc6 {[%clk
0:02:01.7]} 14. Nxe6 {[%clk 0:01:07.5]} 14... fxe6 {[%clk 0:02:02.1]} 15. Kd2
{[%clk 0:01:07.3]} 15... Nf6 {[%clk 0:02:02.2]} 16. f3 {[%clk 0:01:07.9]} 16...
d5 {[%clk 0:01:51.6]} 17. Bd3 {[%clk 0:00:43.7]} 17... Kf7 {[%clk 0:01:34.9]}
18. Ra4 {[%clk 0:00:33.4]} 18... Rhd8 {[%clk 0:01:31.3]} 19. Ke2 {[%clk
0:00:30.5]} 19... e5 {[%clk 0:01:19.9]} 20. exd5 {[%clk 0:00:25]} 20... Nxd5
{[%clk 0:01:20.4]} 21. Bd2 {[%clk 0:00:14.2]} 21... Nf4+ {[%clk 0:01:17.6]} 22.
Bxf4 {[%clk 0:00:15.4]} 22... gxf4 {[%clk 0:01:15.4]} 23. Be4 {[%clk 0:00:15.6]}
23... Rg8 {[%clk 0:01:11.4]} 24. Kf2 {[%clk 0:00:16]} 24... Rad8 {[%clk
0:01:10.4]} 25. Ra2 {[%clk 0:00:17.2]} 25... Rd6 {[%clk 0:00:58.7]} 26. Re1
{[%clk 0:00:18.2]} 26... a6 {[%clk 0:00:54.1]} 27. Bxc6 {[%clk 0:00:15.2]} 27...
Rxc6 {[%clk 0:00:54.8]} 28. c4 {[%clk 0:00:13.7]} 28... Kf6 {[%clk 0:00:53.3]}
29. Rae2 {[%clk 0:00:13.3]} 29... Re6 {[%clk 0:00:50.8]} 30. Rd1 {[%clk
0:00:12.8]} 30... h5 {[%clk 0:00:48.3]} 31. Rd5 {[%clk 0:00:13.7]} 31... h4
{[%clk 0:00:48]} 32. c5 {[%clk 0:00:11.9]} 32... Rg5 {[%clk 0:00:40.8]} 33. b4
{[%clk 0:00:12.9]} 33... b6 {[%clk 0:00:36.6]} 34. Rc2 {[%clk 0:00:07.7]} 34...
bxc5 {[%clk 0:00:34.4]} 35. bxc5 {[%clk 0:00:09.6]} 35... Rc6 {[%clk 0:00:33.2]}
36. Kf1 {[%clk 0:00:05.1]} 36... Rg8 {[%clk 0:00:27.8]} 37. Rd3 {[%clk
0:00:04.8]} 37... Rgc8 {[%clk 0:00:25.4]} 38. Ra3 {[%clk 0:00:06.4]} 38... Rxc5
{[%clk 0:00:21]} 39. Rxa6+ {[%clk 0:00:06.7]} 39... e6 {[%clk 0:00:19.4]} 40.
Rxc5 {[%clk 0:00:06]} 40... Rxc5 {[%clk 0:00:21.3]} 41. Ra8 {[%clk 0:00:05.9]}
41... Rc1+ {[%clk 0:00:22.1]} 42. Kf2 {[%clk 0:00:06.8]} 42... e4 {[%clk
0:00:23.4]} 43. fxe4 {[%clk 0:00:05.6]} 43... Ke5 {[%clk 0:00:24.9]} 44. Rh8
{[%clk 0:00:06.4]} 44... Kxe4 {[%clk 0:00:25.8]} 45. Rxh4 {[%clk 0:00:07.5]}
45... Rc2+ {[%clk 0:00:25.4]} 46. Kg1 {[%clk 0:00:07.7]} 46... e5 {[%clk
0:00:26.4]} 47. Rh8 {[%clk 0:00:06.7]} 47... Ke3 {[%clk 0:00:23.9]} 48. Re8
{[%clk 0:00:05.1]} 48... e4 {[%clk 0:00:24.8]} 49. h4 {[%clk 0:00:06.6]} 49...
Rc5 {[%clk 0:00:24.6]} 50. Kh2 {[%clk 0:00:06.9]} 50... Rc2 {[%clk 0:00:23.1]}
51. Kh3 {[%clk 0:00:07.9]} 51... Rc1 {[%clk 0:00:23.5]} 52. h5 {[%clk
0:00:08.7]} 52... Rh1+ {[%clk 0:00:23.2]} 53. Kg4 {[%clk 0:00:10.1]} 53... Rh2
{[%clk 0:00:24.3]} 54. Kf5 {[%clk 0:00:10]} 54... Rxh5+ {[%clk 0:00:24.3]} 55.
Kg4 {[%clk 0:00:11.5]} 55... Rb5 {[%clk 0:00:16.1]} 56. Rf8 {[%clk 0:00:07.9]}
56... Rb7 {[%clk 0:00:12.5]} 57. Re8 {[%clk 0:00:03.8]} 57... Rf7 {[%clk
0:00:11.3]} 58. Re7 {[%clk 0:00:02.8]} 58... Rxe7 {[%clk 0:00:11.7]} 0-1

[Event "*** Titled Tuesday Blitz"]
[Site "Chess.com"]
[Date "2019.04.02"]
[Round "4"]
[White "SabinaFoisor"]
[Black "dopolian"]
[Result "1/2-1/2"]
[WhiteElo "2186"]
[BlackElo "2186"]
[TimeControl "180+2"]
[EndTime "14:51:31 PDT"]
[Termination "Game drawn - insufficient material"]

1. d4 {[%clk 0:03:01.9]} 1... Nf6 {[%clk 0:03:00.5]} 2. c4 {[%clk 0:03:01.7]}
2... c5 {[%clk 0:03:01.6]} 3. e3 {[%clk 0:03:01.2]} 3... cxd4 {[%clk 0:03:00.8]}
4. exd4 {[%clk 0:03:01.4]} 4... d5 {[%clk 0:03:02.2]} 5. Nf3 {[%clk 0:03:01.7]}
5... Nc6 {[%clk 0:03:02.4]} 6. Nc3 {[%clk 0:03:02.9]} 6... e6 {[%clk 0:02:57.7]}
7. Bg5 {[%clk 0:02:57.2]} 7... Be7 {[%clk 0:02:56.2]} 8. Be2 {[%clk 0:02:53.7]}
8... O-O {[%clk 0:02:56.1]} 9. O-O {[%clk 0:02:54.3]} 9... dxc4 {[%clk
0:02:57.2]} 10. Bxc4 {[%clk 0:02:54.8]} 10... Nd5 {[%clk 0:02:56.9]} 11. Bxe7
{[%clk 0:02:48.5]} 11... Ncxe7 {[%clk 0:02:53.7]} 12. Qd3 {[%clk 0:02:41]} 12...
a6 {[%clk 0:02:49]} 13. a3 {[%clk 0:02:41.7]} 13... b5 {[%clk 0:02:48.4]} 14.
Ba2 {[%clk 0:02:42.5]} 14... Bb7 {[%clk 0:02:47.1]} 15. Rad1 {[%clk 0:02:42.1]}
15... Rc8 {[%clk 0:02:45.4]} 16. Bb1 {[%clk 0:02:42.2]} 16... g6 {[%clk
0:02:42.7]} 17. Rfe1 {[%clk 0:02:41.8]} 17... Nxc3 {[%clk 0:02:42.8]} 18. bxc3
{[%clk 0:02:42.4]} 18... Qa5 {[%clk 0:02:34.2]} 19. Rc1 {[%clk 0:02:26.5]} 19...
Qxa3 {[%clk 0:02:14.1]} 20. Ng5 {[%clk 0:02:23.4]} 20... Bd5 {[%clk 0:02:06.5]}
21. Qh3 {[%clk 0:02:18.2]} 21... h5 {[%clk 0:02:00.4]} 22. Be4 {[%clk
0:02:12.6]} 22... Bxe4 {[%clk 0:01:51.6]} 23. Nxe4 {[%clk 0:02:14.5]} 23... Nd5
{[%clk 0:01:48.5]} 24. g4 {[%clk 0:02:03.9]} 24... hxg4 {[%clk 0:01:37.6]} 25.
Qxg4 {[%clk 0:02:05.8]} 25... Qe7 {[%clk 0:01:32.3]} 26. Nc5 {[%clk 0:01:36.5]}
26... Rc6 {[%clk 0:01:19.3]} 27. h4 {[%clk 0:01:09.2]} 27... Kh7 {[%clk
0:01:02.9]} 28. Re5 {[%clk 0:01:06.3]} 28... f5 {[%clk 0:00:50.9]} 29. Qg5
{[%clk 0:00:55.5]} 29... Qxg5+ {[%clk 0:00:51]} 30. hxg5 {[%clk 0:00:57.4]}
30... Nf4 {[%clk 0:00:41.1]} 31. Ra1 {[%clk 0:00:44.9]} 31... Ra8 {[%clk
0:00:38.6]} 32. Kh2 {[%clk 0:00:44.7]} 32... a5 {[%clk 0:00:28.3]} 33. Kg3
{[%clk 0:00:45.5]} 33... Nd5 {[%clk 0:00:29.5]} 34. Nxe6 {[%clk 0:00:38.3]}
34... Rxc3+ {[%clk 0:00:29.2]} 35. f3 {[%clk 0:00:39.5]} 35... Re3 {[%clk
0:00:15.5]} 36. Rh1+ {[%clk 0:00:33.4]} 36... Kg8 {[%clk 0:00:15.5]} 37. Rxd5
{[%clk 0:00:22.5]} 37... Rxe6 {[%clk 0:00:16.4]} 38. Rxb5 {[%clk 0:00:24.1]}
38... Re7 {[%clk 0:00:13.4]} 39. Ra1 {[%clk 0:00:23.6]} 39... a4 {[%clk
0:00:13.9]} 40. Ra3 {[%clk 0:00:24.6]} 40... Rd7 {[%clk 0:00:13.7]} 41. Rb4
{[%clk 0:00:25.7]} 41... Rda7 {[%clk 0:00:11.7]} 42. Kf4 {[%clk 0:00:26.3]}
42... Ra5 {[%clk 0:00:09.9]} 43. Ke3 {[%clk 0:00:25.2]} 43... Kf7 {[%clk
0:00:10.7]} 44. Kd3 {[%clk 0:00:25.5]} 44... Ke7 {[%clk 0:00:08.8]} 45. Rb6
{[%clk 0:00:24.5]} 45... Kf7 {[%clk 0:00:09.5]} 46. Kc4 {[%clk 0:00:23.8]} 46...
Rd8 {[%clk 0:00:06.8]} 47. Rb4 {[%clk 0:00:19.9]} 47... Rad5 {[%clk 0:00:06.9]}
48. Kc3 {[%clk 0:00:20.2]} 48... Rc8+ {[%clk 0:00:06.8]} 49. Rc4 {[%clk
0:00:18.8]} 49... Rxc4+ {[%clk 0:00:06.9]} 50. Kxc4 {[%clk 0:00:20.7]} 50... Ra5
{[%clk 0:00:08.2]} 51. Kb4 {[%clk 0:00:21.6]} 51... Rd5 {[%clk 0:00:09.3]} 52.
Kc4 {[%clk 0:00:22.6]} 52... Ra5 {[%clk 0:00:10.2]} 53. Kb4 {[%clk 0:00:23.7]}
53... Rd5 {[%clk 0:00:11]} 54. Rd3 {[%clk 0:00:24.9]} 54... Ke6 {[%clk
0:00:10.2]} 55. Kxa4 {[%clk 0:00:26]} 55... f4 {[%clk 0:00:11.5]} 56. Kb4 {[%clk
0:00:27.2]} 56... Kf5 {[%clk 0:00:12.6]} 57. Kc4 {[%clk 0:00:27.7]} 57... Rd8
{[%clk 0:00:13.7]} 58. d5 {[%clk 0:00:28.7]} 58... Kxg5 {[%clk 0:00:14.9]} 59.
d6 {[%clk 0:00:29.9]} 59... Kf5 {[%clk 0:00:15.8]} 60. Kd5 {[%clk 0:00:31.8]}
60... g5 {[%clk 0:00:15.8]} 61. Rd1 {[%clk 0:00:29.9]} 61... g4 {[%clk 0:00:16]}
62. fxg4+ {[%clk 0:00:29.6]} 62... Kxg4 {[%clk 0:00:17.9]} 63. Ke6 {[%clk
0:00:30.1]} 63... Kf3 {[%clk 0:00:17.9]} 64. Ke7 {[%clk 0:00:30.4]} 64... Rxd6
{[%clk 0:00:17.9]} 65. Kxd6 {[%clk 0:00:31.1]} 65... Ke2 {[%clk 0:00:17]} 66.
Ra1 {[%clk 0:00:31.7]} 66... f3 {[%clk 0:00:18.2]} 67. Ke5 {[%clk 0:00:32.8]}
67... f2 {[%clk 0:00:19.5]} 68. Ra2+ {[%clk 0:00:33.2]} 68... Ke1 {[%clk
0:00:20.3]} 69. Ke4 {[%clk 0:00:32.6]} 69... f1=Q {[%clk 0:00:18.6]} 70. Ra1+
{[%clk 0:00:32.5]} 70... Ke2 {[%clk 0:00:19.3]} 71. Rxf1 {[%clk 0:00:34.4]}
71... Kxf1 {[%clk 0:00:21]} 1/2-1/2

[Event "*** Titled Tuesday Blitz"]
[Site "Chess.com"]
[Date "2019.04.02"]
[Round "4"]
[White "Jospem"]
[Black "moro182"]
[Result "1/2-1/2"]
[WhiteElo "2785"]
[BlackElo "2767"]
[TimeControl "180+2"]
[EndTime "14:51:32 PDT"]
[Termination "Game drawn - insufficient material"]

1. c4 {[%clk 0:03:01.9]} 1... e6 {[%clk 0:03:00.3]} 2. Nf3 {[%clk 0:03:02.7]}
2... d5 {[%clk 0:03:01.2]} 3. g3 {[%clk 0:03:04.6]} 3... Nf6 {[%clk 0:03:00.8]}
4. Bg2 {[%clk 0:03:06.5]} 4... dxc4 {[%clk 0:03:02.4]} 5. O-O {[%clk 0:03:08.1]}
5... a6 {[%clk 0:03:02.8]} 6. a4 {[%clk 0:03:05.3]} 6... Nc6 {[%clk 0:03:03.4]}
7. Na3 {[%clk 0:03:06.1]} 7... Na5 {[%clk 0:03:03.9]} 8. Qc2 {[%clk 0:03:05.8]}
8... Bxa3 {[%clk 0:02:55.1]} 9. Rxa3 {[%clk 0:03:04.4]} 9... O-O {[%clk
0:02:56.1]} 10. d3 {[%clk 0:03:05.3]} 10... cxd3 {[%clk 0:02:51.2]} 11. Rxd3
{[%clk 0:03:06.6]} 11... Qe7 {[%clk 0:02:52.3]} 12. Ne5 {[%clk 0:02:48]} 12...
Nd5 {[%clk 0:02:40.2]} 13. Bd2 {[%clk 0:02:35.9]} 13... Nc6 {[%clk 0:02:20.4]}
14. Nxc6 {[%clk 0:02:34.2]} 14... bxc6 {[%clk 0:02:22.3]} 15. Qxc6 {[%clk
0:02:28.5]} 15... Rb8 {[%clk 0:02:18.6]} 16. b3 {[%clk 0:02:11.9]} 16... Bb7
{[%clk 0:02:11.3]} 17. Qc1 {[%clk 0:02:06.3]} 17... c5 {[%clk 0:02:02.7]} 18.
Rd1 {[%clk 0:02:01.6]} 18... Rfc8 {[%clk 0:02:02.8]} 19. Be1 {[%clk 0:01:57.2]}
19... h6 {[%clk 0:02:01.1]} 20. e4 {[%clk 0:01:52.8]} 20... Nf6 {[%clk
0:01:48.1]} 21. f3 {[%clk 0:01:49.8]} 21... c4 {[%clk 0:01:19.4]} 22. bxc4
{[%clk 0:01:50.5]} 22... Qc5+ {[%clk 0:01:15.5]} 23. Bf2 {[%clk 0:01:50.8]}
23... Qxc4 {[%clk 0:01:16.5]} 24. Qxc4 {[%clk 0:01:52.5]} 24... Rxc4 {[%clk
0:01:17.8]} 25. a5 {[%clk 0:01:53.1]} 25... Bc6 {[%clk 0:01:14.2]} 26. Bb6
{[%clk 0:01:42]} 26... Bb5 {[%clk 0:01:12.1]} 27. Bf1 {[%clk 0:01:15.9]} 27...
Ra4 {[%clk 0:00:56.6]} 28. Rd4 {[%clk 0:00:44.9]} 28... Rxd4 {[%clk 0:00:37.4]}
29. Rxd4 {[%clk 0:00:46.8]} 29... Bxf1 {[%clk 0:00:36]} 30. Kxf1 {[%clk
0:00:48.7]} 30... Rc8 {[%clk 0:00:36.8]} 31. Rd6 {[%clk 0:00:35.5]} 31... Rc3
{[%clk 0:00:37.7]} 32. Kg2 {[%clk 0:00:33.1]} 32... Rc2+ {[%clk 0:00:38]} 33.
Bf2 {[%clk 0:00:30.3]} 33... Ra2 {[%clk 0:00:38.6]} 34. Rxa6 {[%clk 0:00:30.9]}
34... Nd7 {[%clk 0:00:40.2]} 35. Ra8+ {[%clk 0:00:21.7]} 35... Kh7 {[%clk
0:00:40.9]} 36. g4 {[%clk 0:00:21.2]} 36... Ne5 {[%clk 0:00:34]} 37. Kg3 {[%clk
0:00:22.2]} 37... Ra3 {[%clk 0:00:34.9]} 38. a6 {[%clk 0:00:21]} 38... Nxf3
{[%clk 0:00:30.7]} 39. Kg2 {[%clk 0:00:17]} 39... Nd2 {[%clk 0:00:26.7]} 40. a7
{[%clk 0:00:10.5]} 40... Nxe4 {[%clk 0:00:27.7]} 41. Bb6 {[%clk 0:00:11.1]}
41... Ra2+ {[%clk 0:00:27.2]} 42. Kg1 {[%clk 0:00:07]} 42... Ra1+ {[%clk
0:00:24.4]} 43. Kg2 {[%clk 0:00:08.4]} 43... Ra2+ {[%clk 0:00:25.9]} 44. Kf3
{[%clk 0:00:09.8]} 44... Nd2+ {[%clk 0:00:26.5]} 45. Kg3 {[%clk 0:00:10.6]}
45... Nc4 {[%clk 0:00:28.4]} 46. Bc5 {[%clk 0:00:10.4]} 46... Nd2 {[%clk
0:00:18.3]} 47. Kf4 {[%clk 0:00:08.4]} 47... Ra4+ {[%clk 0:00:19.1]} 48. Ke3
{[%clk 0:00:08]} 48... Ne4 {[%clk 0:00:20.3]} 49. Bb6 {[%clk 0:00:05.7]} 49...
Nd6 {[%clk 0:00:21.1]} 50. Ke2 {[%clk 0:00:06.1]} 50... Ra2+ {[%clk 0:00:21.7]}
51. Kd3 {[%clk 0:00:07]} 51... Ra3+ {[%clk 0:00:23]} 52. Kc2 {[%clk 0:00:08.2]}
52... Nb5 {[%clk 0:00:21.6]} 53. Kb2 {[%clk 0:00:09.1]} 53... Ra6 {[%clk
0:00:22]} 54. Bc5 {[%clk 0:00:09.2]} 54... e5 {[%clk 0:00:23.2]} 55. Kb3 {[%clk
0:00:10.3]} 55... e4 {[%clk 0:00:22.6]} 56. Kb4 {[%clk 0:00:10.9]} 56... Nxa7
{[%clk 0:00:20.4]} 57. Rxa7 {[%clk 0:00:11.9]} 57... Rxa7 {[%clk 0:00:21.8]} 58.
Bxa7 {[%clk 0:00:13.8]} 58... Kg6 {[%clk 0:00:23.4]} 59. Be3 {[%clk 0:00:12.1]}
59... f5 {[%clk 0:00:24.3]} 60. gxf5+ {[%clk 0:00:10.9]} 60... Kxf5 {[%clk
0:00:26.2]} 61. h3 {[%clk 0:00:11.6]} 61... g5 {[%clk 0:00:26.6]} 62. Kc3 {[%clk
0:00:10.2]} 62... h5 {[%clk 0:00:27.7]} 63. Kd4 {[%clk 0:00:07.8]} 63... h4
{[%clk 0:00:28.9]} 64. Bf2 {[%clk 0:00:07.4]} 64... g4 {[%clk 0:00:30]} 65.
hxg4+ {[%clk 0:00:09.3]} 65... Kxg4 {[%clk 0:00:31.9]} 66. Bxh4 {[%clk
0:00:09.2]} 66... Kxh4 {[%clk 0:00:32.4]} 67. Kxe4 {[%clk 0:00:10.5]} 1/2-1/2

[Event "*** Titled Tuesday Blitz"]
[Site "Chess.com"]
[Date "2019.04.02"]
[Round "4"]
[White "Medvegy"]
[Black "Dedic8"]
[Result "0-1"]
[WhiteElo "2535"]
[BlackElo "2715"]
[TimeControl "180+2"]
[EndTime "14:51:33 PDT"]
[Termination "Dedic8 won by resignation"]

1. Nf3 {[%clk 0:03:01.9]} 1... d5 {[%clk 0:03:00.5]} 2. e3 {[%clk 0:03:02.6]}
2... Nf6 {[%clk 0:03:02]} 3. c4 {[%clk 0:03:03.6]} 3... e6 {[%clk 0:03:02.2]} 4.
Nc3 {[%clk 0:03:04.8]} 4... c5 {[%clk 0:03:03.1]} 5. cxd5 {[%clk 0:03:05]} 5...
exd5 {[%clk 0:03:04.2]} 6. d4 {[%clk 0:03:05.2]} 6... Nc6 {[%clk 0:03:05.6]} 7.
Bb5 {[%clk 0:03:02.8]} 7... a6 {[%clk 0:02:59]} 8. Bxc6+ {[%clk 0:03:03.2]} 8...
bxc6 {[%clk 0:03:00.9]} 9. O-O {[%clk 0:03:01.6]} 9... cxd4 {[%clk 0:02:48.4]}
10. exd4 {[%clk 0:02:54.7]} 10... Be7 {[%clk 0:02:48.3]} 11. Ne5 {[%clk
0:02:55]} 11... Bd7 {[%clk 0:02:26]} 12. Be3 {[%clk 0:02:41.3]} 12... O-O {[%clk
0:02:26.6]} 13. Rc1 {[%clk 0:02:41.3]} 13... Be8 {[%clk 0:02:21.3]} 14. Na4
{[%clk 0:02:39.5]} 14... Rc8 {[%clk 0:02:00.9]} 15. Nc5 {[%clk 0:02:25.3]} 15...
Qb6 {[%clk 0:01:52.3]} 16. b3 {[%clk 0:02:18.5]} 16... Rd8 {[%clk 0:01:47]} 17.
Qd3 {[%clk 0:02:16.8]} 17... Qb5 {[%clk 0:01:25.5]} 18. a4 {[%clk 0:01:33.6]}
18... Qxd3 {[%clk 0:01:24.3]} 19. Nexd3 {[%clk 0:01:35.3]} 19... Ra8 {[%clk
0:01:15.5]} 20. Rfe1 {[%clk 0:01:35.1]} 20... Ne4 {[%clk 0:01:01.8]} 21. Bf4
{[%clk 0:01:22.6]} 21... Nxc5 {[%clk 0:00:55]} 22. dxc5 {[%clk 0:01:11.8]} 22...
Ra7 {[%clk 0:00:33.4]} 23. Bd6 {[%clk 0:01:00.6]} 23... Bxd6 {[%clk 0:00:30.9]}
24. cxd6 {[%clk 0:01:02.5]} 24... f6 {[%clk 0:00:26.6]} 25. Nc5 {[%clk
0:00:49.6]} 25... Bg6 {[%clk 0:00:27.7]} 26. f3 {[%clk 0:00:32.3]} 26... Rd8
{[%clk 0:00:23.4]} 27. Re7 {[%clk 0:00:25.8]} 27... Rxe7 {[%clk 0:00:22.1]} 28.
dxe7 {[%clk 0:00:27.7]} 28... Re8 {[%clk 0:00:23.8]} 29. Nxa6 {[%clk 0:00:25.8]}
29... Rxe7 {[%clk 0:00:22]} 30. Rxc6 {[%clk 0:00:26.7]} 30... d4 {[%clk
0:00:19.3]} 31. Rd6 {[%clk 0:00:23.6]} 31... d3 {[%clk 0:00:18.6]} 32. Nc5
{[%clk 0:00:21.1]} 32... Re2 {[%clk 0:00:15.4]} 33. Kf1 {[%clk 0:00:20]} 33...
Rb2 {[%clk 0:00:13.9]} 34. a5 {[%clk 0:00:20.3]} 34... Kf7 {[%clk 0:00:10.3]}
35. a6 {[%clk 0:00:20.8]} 35... Ra2 {[%clk 0:00:11.3]} 36. b4 {[%clk 0:00:19.4]}
36... Ke7 {[%clk 0:00:12.1]} 37. Rd7+ {[%clk 0:00:20.2]} 37... Ke8 {[%clk
0:00:13.6]} 38. b5 {[%clk 0:00:20.1]} 38... d2 {[%clk 0:00:13]} 39. Ke2 {[%clk
0:00:20.1]} 39... Bf7 {[%clk 0:00:12.6]} 40. Rxd2 {[%clk 0:00:17.5]} 40... Bc4+
{[%clk 0:00:13.2]} 41. Ke3 {[%clk 0:00:18.6]} 41... Ra3+ {[%clk 0:00:08.9]} 42.
Kd4 {[%clk 0:00:11.2]} 42... Bxb5 {[%clk 0:00:10.4]} 43. Rb2 {[%clk 0:00:12.4]}
43... Bxa6 {[%clk 0:00:05.1]} 44. Rb8+ {[%clk 0:00:14.3]} 44... Kf7 {[%clk
0:00:06.6]} 45. Ra8 {[%clk 0:00:15.7]} 45... Ra2 {[%clk 0:00:08.3]} 46. Ra7+
{[%clk 0:00:15.7]} 46... Kg6 {[%clk 0:00:09]} 47. Rxa6 {[%clk 0:00:15.7]} 47...
Rxg2 {[%clk 0:00:10.3]} 48. Ra7 {[%clk 0:00:15.1]} 48... Kf5 {[%clk 0:00:07.1]}
49. Ke3 {[%clk 0:00:14.7]} 49... g5 {[%clk 0:00:03.9]} 50. Rxh7 {[%clk
0:00:13.5]} 50... Rc2 {[%clk 0:00:04.9]} 51. Ne4 {[%clk 0:00:13.2]} 51... Kg6
{[%clk 0:00:06.5]} 52. Rd7 {[%clk 0:00:13.5]} 52... f5 {[%clk 0:00:04.8]} 53.
Rd6+ {[%clk 0:00:13.6]} 53... Kh5 {[%clk 0:00:05.8]} 54. Nf6+ {[%clk 0:00:14.1]}
54... Kh4 {[%clk 0:00:07.2]} 55. Rd8 {[%clk 0:00:09]} 55... Rxh2 {[%clk
0:00:07]} 56. Rh8+ {[%clk 0:00:08.2]} 56... Kg3 {[%clk 0:00:08.5]} 57. Ne4+
{[%clk 0:00:04.1]} 57... fxe4 {[%clk 0:00:09.2]} 58. Rxh2 {[%clk 0:00:05]} 58...
Kxh2 {[%clk 0:00:10.2]} 59. fxe4 {[%clk 0:00:06.2]} 59... g4 {[%clk 0:00:11.1]}
0-1

[Event "*** Titled Tuesday Blitz"]
[Site "Chess.com"]
[Date "2019.04.02"]
[Round "4"]
[White "TregubovP"]
[Black "vladimirdamjanovic"]
[Result "1/2-1/2"]
[WhiteElo "2506"]
[BlackElo "2549"]
[TimeControl "180+2"]
[EndTime "14:51:39 PDT"]
[Termination "Game drawn - insufficient material"]

1. d4 {[%clk 0:03:01.9]} 1... Nf6 {[%clk 0:03:00.7]} 2. c4 {[%clk 0:03:02.7]}
2... c5 {[%clk 0:03:01.8]} 3. d5 {[%clk 0:03:02.8]} 3... b5 {[%clk 0:03:02.9]}
4. cxb5 {[%clk 0:03:03.3]} 4... a6 {[%clk 0:03:04.4]} 5. e3 {[%clk 0:03:04.3]}
5... d6 {[%clk 0:03:04.9]} 6. Nc3 {[%clk 0:03:04.1]} 6... g6 {[%clk 0:03:06.1]}
7. Nf3 {[%clk 0:03:03.9]} 7... Bg7 {[%clk 0:03:07.2]} 8. e4 {[%clk 0:03:04.5]}
8... O-O {[%clk 0:03:07.8]} 9. a4 {[%clk 0:03:05.7]} 9... Nbd7 {[%clk
0:03:07.3]} 10. bxa6 {[%clk 0:03:02.8]} 10... Qa5 {[%clk 0:03:05.8]} 11. Bd2
{[%clk 0:02:53.1]} 11... Bxa6 {[%clk 0:03:06.8]} 12. Bxa6 {[%clk 0:02:50.7]}
12... Qxa6 {[%clk 0:03:06.5]} 13. Qe2 {[%clk 0:02:51.7]} 13... Rfb8 {[%clk
0:03:02.7]} 14. Qxa6 {[%clk 0:02:24.8]} 14... Rxa6 {[%clk 0:03:04.6]} 15. Ra2
{[%clk 0:02:20.2]} 15... Rb4 {[%clk 0:03:04.4]} 16. O-O {[%clk 0:02:14]} 16...
Nxe4 {[%clk 0:03:01]} 17. Nxe4 {[%clk 0:02:09.9]} 17... Rxe4 {[%clk 0:03:01.5]}
18. a5 {[%clk 0:02:09.6]} 18... Nf6 {[%clk 0:02:54.8]} 19. Re1 {[%clk
0:01:59.8]} 19... Rxe1+ {[%clk 0:02:53.5]} 20. Nxe1 {[%clk 0:02:00.6]} 20...
Nxd5 {[%clk 0:02:52.5]} 21. Nc2 {[%clk 0:02:01.3]} 21... Nc7 {[%clk 0:02:41.7]}
22. b4 {[%clk 0:01:59.8]} 22... f5 {[%clk 0:02:09.2]} 23. bxc5 {[%clk
0:01:57.2]} 23... dxc5 {[%clk 0:02:09.8]} 24. Kf1 {[%clk 0:01:58.2]} 24... Kf7
{[%clk 0:02:04.7]} 25. Ne3 {[%clk 0:01:58.4]} 25... Ke6 {[%clk 0:01:57.2]} 26.
Rc2 {[%clk 0:01:55.7]} 26... Bd4 {[%clk 0:01:54.5]} 27. Nc4 {[%clk 0:01:53.8]}
27... Nd5 {[%clk 0:01:49.8]} 28. Rc1 {[%clk 0:01:41.9]} 28... Kd7 {[%clk
0:01:47]} 29. Rb1 {[%clk 0:01:40.7]} 29... Kc7 {[%clk 0:01:44.9]} 30. Rb3 {[%clk
0:01:27.1]} 30... f4 {[%clk 0:01:14.6]} 31. g3 {[%clk 0:01:23.2]} 31... fxg3
{[%clk 0:01:10.2]} 32. hxg3 {[%clk 0:01:21.7]} 32... h5 {[%clk 0:00:54]} 33. Kg2
{[%clk 0:01:22]} 33... e5 {[%clk 0:00:48.3]} 34. f3 {[%clk 0:01:10.6]} 34... Ra8
{[%clk 0:00:42.6]} 35. Nb6 {[%clk 0:01:07.9]} 35... Nxb6 {[%clk 0:00:40.2]} 36.
Rxb6 {[%clk 0:01:08.8]} 36... Rb8 {[%clk 0:00:35.7]} 37. Rxb8 {[%clk 0:00:57.5]}
37... Kxb8 {[%clk 0:00:36.3]} 38. Kf1 {[%clk 0:00:56.2]} 38... Kb7 {[%clk
0:00:37]} 39. Ke2 {[%clk 0:00:57.3]} 39... c4 {[%clk 0:00:38.4]} 40. Bg5 {[%clk
0:00:52.9]} 40... Ka6 {[%clk 0:00:35.5]} 41. Bd8 {[%clk 0:00:53.1]} 41... Bc3
{[%clk 0:00:36]} 42. Bc7 {[%clk 0:00:53.9]} 42... Bd4 {[%clk 0:00:31.1]} 43. Kd2
{[%clk 0:00:45.6]} 43... Kb5 {[%clk 0:00:28.5]} 44. Kc2 {[%clk 0:00:45.9]} 44...
g5 {[%clk 0:00:27.1]} 45. Bd8 {[%clk 0:00:44.2]} 45... g4 {[%clk 0:00:28.1]} 46.
fxg4 {[%clk 0:00:42.5]} 46... hxg4 {[%clk 0:00:30]} 47. Bc7 {[%clk 0:00:39.7]}
47... e4 {[%clk 0:00:30.7]} 48. Kd2 {[%clk 0:00:34.3]} 48... Bf2 {[%clk
0:00:25.8]} 49. Ke2 {[%clk 0:00:32.1]} 49... Bc5 {[%clk 0:00:23.5]} 50. Kd2
{[%clk 0:00:31.9]} 50... Bd4 {[%clk 0:00:16.2]} 51. Bd8 {[%clk 0:00:26.9]} 51...
e3+ {[%clk 0:00:15.2]} 52. Ke2 {[%clk 0:00:27.5]} 52... Be5 {[%clk 0:00:13.9]}
53. Kxe3 {[%clk 0:00:23]} 53... Bxg3 {[%clk 0:00:15.2]} 54. Ke4 {[%clk
0:00:17.9]} 54... Bb8 {[%clk 0:00:13.3]} 55. Bb6 {[%clk 0:00:16.3]} 55... g3
{[%clk 0:00:12.6]} 56. Kf3 {[%clk 0:00:16.9]} 56... c3 {[%clk 0:00:12.1]} 57.
Ke2 {[%clk 0:00:17.5]} 57... Kc4 {[%clk 0:00:12.6]} 58. a6 {[%clk 0:00:17.4]}
58... Kb3 {[%clk 0:00:13]} 59. a7 {[%clk 0:00:17.3]} 59... Bxa7 {[%clk
0:00:14.2]} 60. Bxa7 {[%clk 0:00:18.3]} 60... c2 {[%clk 0:00:15.5]} 61. Be3
{[%clk 0:00:19]} 61... Kc3 {[%clk 0:00:12.6]} 62. Kf3 {[%clk 0:00:20.2]} 62...
Kd3 {[%clk 0:00:13.9]} 63. Bh6 {[%clk 0:00:20.9]} 63... Kc3 {[%clk 0:00:13.4]}
64. Kxg3 {[%clk 0:00:21.8]} 64... Kb2 {[%clk 0:00:14.7]} 65. Kf2 {[%clk
0:00:22.5]} 65... c1=Q {[%clk 0:00:15.3]} 66. Bxc1+ {[%clk 0:00:19.5]} 1/2-1/2